bitfinex-derivatives/quotes_SOLF0:USTF0_20250901
["timestamp","ask_amount","ask_price","bid_price","bid_amount"]
[1756690203953,126.98,202.01,201.9,7.98]
[1756690204355,0.7,201.98,201.9,7.98]
[1756690204548,2.19308244,201.96,201.83,2.19308244]
[1756690204753,0.7,201.95,201.84,7.98]
[1756690205451,21.92,201.95,201.84,7.98]
[1756690205847,20.42809836,202.09,201.86,2.19308244]
[1756690206048,2.19308244,202.02,201.9,7.98]
[1756690206650,15.4,202.01,201.9,7.98]
[1756690207954,19.1,202.02,201.93,7.94]
[1756690210453,0.7,202.03,201.93,7.94]
[1756690210454,68.94,202.03,201.93,7.94]
[1756690210650,14.91,202.14,201.93,7.94]
[1756690210853,14.91,202.14,201.92,2.19308244]
[1756690210854,2.88308244,202.07,201.96,7.94]
[1756690211953,61.64,202.06,201.96,7.94]
[1756690213256,2.19308244,202.04,201.96,7.94]
[1756690214753,2.19308244,202.04,201.89,2.19308244]
[1756690214754,0.69,202.03,201.89,2.19308244]
[1756690214958,0.69,202.03,201.9,7.94]
[1756690215463,0.69,202.0,201.9,7.94]
[1756690216560,2.19308244,201.98,201.9,7.94]
[1756690216759,14.27,201.97,201.9,7.94]
[1756690217650,14.27,201.97,201.82,4.08873896]
[1756690217851,2.19308244,201.95,201.83,7.94]
[1756690218062,14.27,201.97,201.83,7.94]
[1756690218458,14.27,201.97,201.84,7.94]
[1756690221866,2.19308244,201.96,201.84,7.94]
[1756690222267,0.69,201.95,201.84,7.94]
[1756690222667,0.69,201.99,201.86,2.19308244]
[1756690222861,18.44,201.98,201.87,7.94]
[1756690223164,2.19308244,201.96,201.87,7.94]
[1756690223567,2.88308244,201.96,201.87,7.94]
[1756690224459,2.19308244,201.93,201.82,4.08873896]
[1756690224762,49.53,201.92,201.82,2.19308244]
[1756690224962,93.98,201.94,201.83,7.94]
[1756690225562,2.19308244,201.93,201.83,7.94]
[1756690225866,2.89308244,201.93,201.83,7.94]
[1756690227371,2.19308244,201.97,201.85,2.19308244]
[1756690227567,2.19308244,201.97,201.86,7.94]
[1756690227762,0.7,201.96,201.86,7.94]
[1756690229065,2.19308244,201.94,201.86,7.94]
[1756690229961,2.19308244,201.94,201.81,7.94]
[1756690229962,0.7,201.93,201.81,7.94]
[1756690231772,0.7,201.9,201.81,7.94]
[1756690231971,2.19308244,201.88,201.81,7.94]
[1756690233168,61.1,201.89,201.76,7.94]
[1756690233169,2.19308244,201.86,201.76,7.94]
[1756690233476,2.89308244,201.83,201.74,107.66242214]
[1756690233976,2.19308244,201.81,201.74,107.66242214]
[1756690234175,13.94,201.8,201.74,107.66242214]
[1756690235367,16.83308244,201.8,201.72,7.94]
[1756690235972,0.7,201.8,201.72,7.94]
[1756690236177,332.92,201.85,201.73,7.94]
[1756690236578,332.92,201.85,201.76,7.94]
[1756690236868,332.92,201.85,201.72,6.29115467]
[1756690236869,332.92,201.85,201.74,7.94]
[1756690237073,332.92,201.85,201.77,2.19308244]
[1756690237277,332.92,201.85,201.78,7.94]
[1756690238583,332.92,201.85,201.8,2.19308244]
[1756690238880,126.56,201.89,201.81,7.46]
[1756690239579,2.19308244,201.92,201.81,7.46]
[1756690239777,46.79308244,201.96,201.84,7.46]
[1756690242174,332.98,201.97,201.87,7.46]
[1756690242379,126.5,201.96,201.87,7.46]
[1756690243375,0.7,201.95,201.87,7.46]
[1756690243779,332.98,201.97,201.87,7.46]
[1756690243978,126.46,201.96,201.89,7.46]
[1756690245782,0.7,202.05,201.91,2.19308244]
[1756690246085,121.02,202.04,201.92,7.46]
[1756690246378,0.7,202.03,201.92,7.46]
[1756690248184,126.42,202.02,201.92,7.46]
[1756690248387,126.34,202.01,201.92,7.46]
[1756690249988,332.94,202.09,201.84,18.87165194]
[1756690249989,0.7,202.08,201.97,2.19308244]
[1756690250186,126.32,202.07,201.98,7.46]
[1756690250886,0.7,202.08,201.98,7.46]
[1756690251083,127.04,202.08,201.99,2.19308244]
[1756690251282,127.04,202.08,202.0,7.46]
[1756690251587,126.34,202.08,202.0,7.46]
[1756690251788,459.3,202.09,202.0,7.46]
[1756690251983,459.3,202.09,202.02,2.19308244]
[1756690252178,459.3,202.09,202.0,7.46]
[1756690252487,459.3,202.09,202.01,2.19308244]
[1756690252885,0.7,202.15,202.05,7.46]
[1756690253185,126.3,202.14,202.05,7.46]
[1756690254386,0.7,202.15,202.05,7.46]
[1756690254387,126.26,202.13,202.05,7.46]
[1756690255787,126.26,202.12,202.05,7.46]
[1756690255975,126.22,202.12,202.05,7.46]
[1756690256382,0.7,202.15,202.05,7.46]
[1756690256580,0.7,202.13,202.05,7.46]
[1756690257187,0.7,202.13,201.96,7.46]
[1756690257387,0.7,202.13,202.01,7.46]
[1756690258693,2.89308244,202.13,202.01,7.46]
[1756690258884,0.7,202.12,202.01,7.46]
[1756690259590,0.7,202.17,202.07,7.46]
[1756690259794,126.92,202.17,202.07,7.46]
[1756690261090,126.92,202.17,202.08,2.19308244]
[1756690262188,333.54,202.21,202.11,2.19308244]
[1756690262390,126.18,202.2,202.11,2.19308244]
[1756690262889,0.7,202.21,202.12,7.46]
[1756690263080,0.7,202.32,202.21,7.46]
[1756690263287,0.7,202.32,202.24,2.19308244]
[1756690264085,0.7,202.37,202.22,3.48473215]
[1756690264288,0.7,202.45,202.3,7.46]
[1756690264493,1.64,202.44,202.3,7.46]
[1756690264697,0.7,202.42,202.3,7.46]
[1756690265087,63.0,202.41,202.3,7.46]
[1756690265282,0.86024695,202.47,202.34,7.46]
[1756690265484,0.7,202.49,202.38,7.46]
[1756690265692,127.34,202.48,202.38,7.46]
[1756690265889,0.7,202.47,202.38,7.46]
[1756690266491,0.7,202.52,202.41,7.46]
[1756690267193,0.78,202.53,202.41,7.46]
[1756690268091,1.48,202.53,202.41,7.46]
[1756690268591,3.48473215,202.52,202.36,7.67]
[1756690268791,14.48,202.51,202.37,3.48473215]
[1756690268992,13.82,202.5,202.38,7.67]
[1756690269187,25.94,202.49,202.38,7.67]
[1756690269391,0.66,202.48,202.38,7.67]
[1756690270098,29.22,202.5,202.38,7.67]
[1756690270297,0.76,202.49,202.38,7.67]
[1756690270493,0.66,202.48,202.38,7.67]
[1756690271189,1.54,202.47,202.38,7.67]
[1756690271886,0.85969441,202.58,202.38,7.67]
[1756690272196,0.66,202.57,202.45,7.67]
[1756690272392,335.80473215,202.68,202.38,6.12]
[1756690272393,0.66,202.67,202.49,7.67]
[1756690272695,0.66,202.63,202.49,7.67]
[1756690273104,75.22,202.62,202.49,7.67]
[1756690273891,0.66,202.57,202.41,3.48473215]
[1756690274096,0.66,202.61,202.46,7.67]
[1756690274398,56.06,202.6,202.47,3.48473215]
[1756690274590,0.66,202.61,202.46,7.67]
[1756690274790,107.08,202.6,202.46,7.67]
[1756690275797,0.66,202.59,202.46,7.67]
[1756690276194,0.66,202.59,202.4,3.48473215]
[1756690276402,65.58473215,202.58,202.41,7.67]
[1756690276899,0.66,202.57,202.41,7.67]
[1756690277496,0.66,202.53,202.41,7.67]
[1756690278000,0.66,202.53,202.36,7.67]
[1756690278298,0.66,202.49,202.36,7.67]
[1756690278494,0.66,202.47,202.36,7.67]
[1756690279505,58.32,202.47,202.36,7.67]
[1756690280100,3.48473215,202.52,202.36,7.67]
[1756690280404,112.0,202.51,202.36,7.67]
[1756690280796,0.66,202.51,202.37,3.48473215]
[1756690281001,128.66,202.53,202.42,7.67]
[1756690281201,332.12,202.54,202.42,7.67]
[1756690281504,332.12,202.54,202.42,11.15473215]
[1756690282006,332.12,202.54,202.42,7.67]
[1756690282402,337.77276298,202.54,202.34,7.67]
[1756690282605,0.66,202.53,202.34,7.67]
[1756690283013,0.66,202.51,202.34,7.67]
[1756690283205,0.66,202.53,202.34,7.67]
[1756690283406,337.77276298,202.54,202.34,7.67]
[1756690283407,0.66,202.49,202.34,7.67]
[1756690286500,0.66,202.49,202.35,7.67]
[1756690286704,106.14,202.49,202.35,7.67]
[1756690286904,0.66,202.49,202.35,7.67]
[1756690287612,134.61276298,202.5,202.35,7.67]
[1756690287807,0.67,202.49,202.35,7.67]
[1756690289011,0.67,202.55,202.35,7.67]
[1756690289213,0.67,202.55,202.42,7.67]
[1756690289413,16.6,202.59,202.42,7.67]
[1756690290107,26.78,202.58,202.42,7.67]
[1756690291108,27.45,202.58,202.42,7.67]
[1756690291906,0.67,202.57,202.42,7.67]
[1756690292609,16.58,202.56,202.42,7.67]
[1756690293003,0.67,202.57,202.42,7.67]
[1756690293215,32.38,202.56,202.42,7.67]
[1756690294114,0.67,202.55,202.42,7.67]
[1756690294716,52.74,202.57,202.42,7.67]
[1756690295916,67.18,202.56,202.42,7.67]
[1756690296418,0.67,202.58,202.42,7.67]
[1756690296717,0.67,202.58,202.43,5.65276298]
[1756690296906,0.67,202.58,202.44,7.67]
[1756690297112,33.44,202.6,202.44,7.67]
[1756690297711,76.99001212,202.62,202.44,7.67]
[1756690297911,88.18,202.61,202.48,7.67]
[1756690298317,130.92,202.61,202.48,7.67]
[1756690298518,130.96,202.61,202.48,7.67]
[1756690299222,130.96,202.61,202.42,7.86]
[1756690299416,0.65,202.58,202.42,7.86]
[1756690299920,0.65,202.57,202.42,7.86]
[1756690300320,29.1,202.58,202.33,5.65276298]
[1756690300321,5.65276298,202.55,202.34,7.86]
[1756690300517,0.65,202.54,202.34,7.86]
[1756690300711,337.61276298,202.55,202.34,7.86]
[1756690300910,131.81,202.54,202.39,7.86]
[1756690301117,131.16,202.54,202.39,7.86]
[1756690301321,131.16,202.54,202.33,5.65276298]
[1756690301322,0.65,202.53,202.33,7.86]
[1756690302418,131.28,202.52,202.33,7.86]
[1756690302623,0.65,202.51,202.33,7.86]
[1756690302822,0.65,202.51,202.36,7.86]
[1756690303023,0.65,202.51,202.36,13.51276298]
[1756690303224,0.65,202.57,202.41,7.86]
[1756690304924,0.65,202.56,202.41,7.86]
[1756690305515,1.94,202.58,202.41,7.86]
[1756690305717,1.94,202.58,202.37,4.08402007]
[1756690305718,0.65,202.55,202.35,43.51276298]
[1756690306021,5.65276298,202.56,202.35,37.86]
[1756690306216,5.65276298,202.52,202.35,37.86]
[1756690306421,331.96,202.51,202.35,37.86]
[1756690306622,0.65,202.48,202.35,37.86]
[1756690308224,68.22,202.47,202.35,37.86]
[1756690308423,0.65,202.46,202.35,30.0]
[1756690308827,131.71,202.46,202.35,30.0]
[1756690309324,0.65,202.46,202.35,30.0]
[1756690309524,0.65,202.46,202.35,34.08402007]
[1756690309922,0.65,202.46,202.36,4.08402007]
[1756690310124,332.61,202.51,202.37,7.86]
[1756690310429,131.38,202.5,202.38,4.08402007]
[1756690310625,131.38,202.5,202.37,7.86]
[1756690310931,463.32,202.51,202.4,11.94402007]
[1756690311130,331.96,202.51,202.41,7.86]
[1756690311326,331.96,202.51,202.42,4.08402007]
[1756690311630,331.96,202.51,202.41,11.94402007]
[1756690311831,131.42,202.53,202.41,11.94402007]
[1756690312031,131.42,202.53,202.41,7.86]
[1756690312829,0.65,202.56,202.41,11.94402007]
[1756690313034,88.3,202.55,202.41,7.86]
[1756690313631,131.38,202.54,202.41,7.86]
[1756690313831,131.36,202.53,202.41,7.86]
[1756690314632,0.65,202.52,202.41,7.86]
[1756690314833,131.36,202.53,202.37,7.86]
[1756690315034,0.65,202.52,202.37,7.86]
[1756690316033,0.65,202.5,202.37,7.86]
[1756690316432,0.65,202.48,202.37,7.86]
[1756690317130,73.45,202.54,202.39,11.94402007]
[1756690317330,73.45,202.54,202.42,7.86]
[1756690318329,131.42,202.53,202.42,7.86]
[1756690319438,131.42,202.53,202.37,7.86]
[1756690319637,0.65,202.52,202.37,7.86]
[1756690321235,89.81,202.52,202.37,7.86]
[1756690321437,0.65,202.48,202.37,7.86]
[1756690321644,0.65,202.48,202.32,37.86]
[1756690321849,5.65276298,202.49,202.32,37.86]
[1756690322056,0.65,202.44,202.32,37.86]
[1756690322253,0.65,202.42,202.32,30.0]
[1756690322851,0.65,202.4,202.32,30.0]
[1756690323252,0.65,202.36,202.32,30.0]
[1756690323452,87.14,202.38,202.32,30.0]
[1756690324367,87.14,202.38,202.22,5.45165194]
[1756690324368,5.65276298,202.37,202.22,4.08402007]
[1756690324561,5.65276298,202.29,202.11,4.08402007]
[1756690324754,95.91714755,202.38,202.09,7.86]
[1756690324755,5.65276298,202.21,202.09,7.86]
[1756690324960,5.65276298,202.21,202.13,19.77]
[1756690325153,88.68,202.2,202.13,19.77]
[1756690325349,0.04,202.2,202.0,4.08402007]
[1756690325562,0.04,202.2,202.04,7.86]
[1756690325856,0.04,202.25,202.15,0.98]
[1756690326048,80.02,202.24,202.19,19.77]
[1756690326254,80.06,202.24,202.19,19.77]
[1756690326455,80.02,202.24,202.19,19.77]
[1756690326654,0.04,202.23,202.12,7.86]
[1756690326850,0.04,202.23,202.18,19.77]
[1756690327260,5.65276298,202.23,202.12,7.86]
[1756690327454,89.22,202.23,202.17,7.86]
[1756690327959,89.22,202.23,202.21,19.77]
[1756690328159,89.22,202.23,202.11,7.41]
[1756690328358,5.65276298,202.28,202.04,8.78]
[1756690328359,5.51809836,202.35,202.22,0.98]
[1756690328563,91.06,202.34,202.27,19.77]
[1756690328756,96.71276298,202.34,202.24,0.98]
[1756690328960,96.71276298,202.34,202.2,7.41]
[1756690329160,96.71276298,202.34,202.21,19.77]
[1756690329358,5.65276298,202.34,202.21,0.98]
[1756690329560,87.7,202.33,202.24,0.98]
[1756690329762,87.7,202.33,202.29,19.77]
[1756690330268,87.7,202.33,202.2,7.41]
[1756690330562,87.7,202.33,202.29,19.77]
[1756690330764,87.7,202.33,202.24,7.41]
[1756690330961,87.7,202.33,202.18,7.41]
[1756690331161,87.7,202.33,202.24,19.77]
[1756690331362,5.65276298,202.34,202.24,19.77]
[1756690331563,5.65276298,202.34,202.18,7.41]
[1756690331564,133.34,202.33,202.18,7.41]
[1756690331869,133.32,202.32,202.25,0.98]
[1756690332160,5.65276298,202.34,202.22,7.41]
[1756690332161,133.34,202.31,202.22,7.41]
[1756690332357,133.34,202.31,202.27,20.75]
[1756690332559,5.65276298,202.38,202.28,19.77]
[1756690332866,133.36,202.32,202.29,19.77]
[1756690333065,133.3,202.32,202.29,19.77]
[1756690333868,133.3,202.32,202.3,19.77]
[1756690334265,133.22,202.33,202.3,19.77]
[1756690334461,332.18,202.39,202.31,19.77]
[1756690334667,332.18,202.39,202.26,7.41]
[1756690334668,133.22,202.38,202.26,7.41]
[1756690334868,133.22,202.38,202.32,19.77]
[1756690335060,332.18,202.39,202.34,19.77]
[1756690335368,133.18,202.37,202.34,19.77]
[1756690335865,133.18,202.37,202.26,7.41]
[1756690336065,133.18,202.37,202.32,19.77]
[1756690336257,332.18,202.39,202.32,19.77]
[1756690336460,332.24,202.5,202.27,7.41]
[1756690336761,332.24,202.5,202.37,0.98]
[1756690336762,5.65276298,202.48,202.37,0.98]
[1756690336958,5.65276298,202.48,202.38,19.77]
[1756690337365,5.65276298,202.48,202.37,0.98]
[1756690337563,133.04,202.47,202.39,0.98]
[1756690337763,5.65276298,202.46,202.21,5.65276298]
[1756690337966,5.65276298,202.46,202.22,7.41]
[1756690338167,5.65276298,202.46,202.35,20.75]
[1756690338470,5.65276298,202.46,202.3,7.41]
[1756690338660,5.65276298,202.42,202.22,7.41]
[1756690338861,129.4,202.41,202.32,19.77]
[1756690339065,5.65276298,202.34,202.22,7.41]
[1756690339263,133.68,202.33,202.25,19.77]
[1756690339463,332.24,202.36,202.22,7.41]
[1756690339668,133.7,202.35,202.3,0.98]
[1756690339866,133.7,202.35,202.22,7.41]
[1756690340067,133.7,202.35,202.27,0.98]
[1756690340470,133.7,202.35,202.28,19.77]
[1756690340872,5.65276298,202.33,202.28,19.77]
[1756690341172,5.65276298,202.29,202.17,7.41]
[1756690341371,133.98,202.28,202.23,19.77]
[1756690341568,5.65276298,202.33,202.23,19.77]
[1756690341768,133.98,202.32,202.21,7.41]
[1756690341975,133.98,202.32,202.16,7.41]
[1756690342175,5.65276298,202.29,202.16,7.41]
[1756690342469,5.65276298,202.29,202.2,19.77]
[1756690342771,5.65276298,202.29,202.19,0.98]
[1756690342971,5.65276298,202.29,202.2,19.77]
[1756690343476,5.65276298,202.29,202.19,0.98]
[1756690343777,5.65276298,202.29,202.2,19.77]
[1756690343965,5.65276298,202.29,202.21,19.77]
[1756690344368,337.89276298,202.36,202.2,7.41]
[1756690344678,134.24,202.35,202.26,19.77]
[1756690345068,337.89276298,202.36,202.26,20.75]
[1756690345268,134.28,202.35,202.29,0.98]
[1756690345473,134.28,202.35,202.3,0.98]
[1756690345775,134.32,202.35,202.33,19.77]
[1756690345965,134.32,202.35,202.34,0.98]
[1756690346165,134.32,202.35,202.34,20.75]
[1756690346770,134.32,202.35,202.3,7.41]
[1756690346969,134.32,202.35,202.32,19.77]
[1756690347378,134.32,202.35,202.34,19.77]
[1756690347874,134.82,202.35,202.21,7.41]
[1756690348176,5.65276298,202.32,202.21,7.41]
[1756690348372,5.65276298,202.32,202.21,0.98]
[1756690348572,5.65276298,202.32,202.22,19.77]
[1756690348770,5.65276298,202.32,202.21,0.98]
[1756690348968,5.65276298,202.32,202.15,7.41]
[1756690348969,5.65276298,202.28,202.15,7.41]
[1756690349165,135.12,202.27,202.17,19.77]
[1756690349375,5.65276298,202.24,202.17,19.77]
[1756690351579,5.65276298,202.24,202.01,5.65276298]
[1756690351773,5.65276298,202.24,201.91,62.0]
[1756690351774,14.84,202.24,202.13,19.77]
[1756690351974,5.65276298,202.2,202.13,19.77]
[1756690352169,14.84,202.24,202.06,7.41]
[1756690352170,332.36,202.21,202.06,7.41]
[1756690352374,59.04,202.2,202.13,0.98]
[1756690352573,59.04,202.2,202.14,19.77]
[1756690353277,59.04,202.2,202.06,7.41]
[1756690353572,64.69276298,202.2,202.06,7.41]
[1756690353779,59.04,202.2,202.13,19.77]
[1756690354581,59.04,202.2,202.06,7.41]
[1756690354970,5.65276298,202.19,202.1,19.77]
[1756690355280,5.65276298,202.15,202.01,7.41]
[1756690355479,134.84,202.14,202.05,19.77]
[1756690355783,5.65276298,202.11,202.04,19.77]
[1756690356279,5.65276298,202.11,202.02,0.98]
[1756690356477,5.65276298,202.11,202.04,19.77]
[1756690356674,134.84,202.14,202.04,19.77]
[1756690356883,5.65276298,202.09,202.04,19.77]
[1756690357075,134.8,202.08,202.04,19.77]
[1756690358078,134.8,202.08,201.96,7.41]
[1756690358079,0.02,202.07,201.96,7.41]
[1756690358382,0.02,202.07,202.03,19.77]
[1756690358783,0.02,202.07,201.96,7.41]
[1756690358982,0.02,202.07,202.03,19.77]
[1756690359283,134.8,202.08,201.96,7.41]
[1756690359485,134.8,202.08,202.02,20.75]
[1756690359884,134.8,202.08,201.96,7.41]
[1756690360181,0.02,202.04,202.01,19.77]
[1756690360483,0.02,202.04,202.0,19.77]
[1756690360785,134.44,202.03,201.96,7.41]
[1756690361081,338.19276298,202.07,202.02,19.77]
[1756690361281,0.02,202.05,201.98,7.28]
[1756690361586,0.02,202.05,201.99,4.37062166]
[1756690361884,0.02,202.05,202.0,24.14062166]
[1756690362082,0.02,202.05,202.0,19.77]
[1756690362282,5.65276298,202.03,201.92,7.28]
[1756690362578,89.14,202.02,201.93,4.3719387]
[1756690362776,89.14,202.02,201.94,4.3719387]
[1756690362979,0.02,201.98,201.95,4.3719387]
[1756690363174,0.02,201.98,201.94,19.77]
[1756690363175,5.65276298,201.99,201.87,7.28]
[1756690363381,5.65276298,201.99,201.92,20.75]
[1756690363885,5.65276298,201.99,201.87,7.28]
[1756690364086,5.65276298,201.95,201.9,20.75]
[1756690364279,121.26,201.94,201.9,20.75]
[1756690364680,121.26,201.94,201.9,28.03]
[1756690364879,134.58,201.93,201.91,19.77]
[1756690365275,134.58,201.93,201.9,7.28]
[1756690365482,5.65276298,201.99,201.91,19.77]
[1756690365685,134.54,201.98,201.91,19.77]
[1756690365983,5.65276298,201.99,201.9,8.26]
[1756690366184,5.65276298,202.0,201.93,0.98]
[1756690366380,124.28,201.99,201.93,20.75]
[1756690367089,124.28,201.99,201.9,7.28]
[1756690367283,124.28,201.99,201.92,20.75]
[1756690367583,5.65276298,202.0,201.75,107.69035964]
[1756690367789,5.67276298,201.92,201.87,0.98]
[1756690368085,5.65276298,201.88,201.83,0.98]
[1756690368289,5.67276298,201.88,201.81,20.75]
[1756690368780,5.67276298,201.88,201.81,0.98]
[1756690369988,5.65276298,201.84,201.74,7.28]
[1756690370282,92.7,201.83,201.79,19.77]
[1756690370487,0.02,201.83,201.79,19.77]
[1756690370686,134.38,201.82,201.74,7.28]
[1756690370987,134.4,201.82,201.79,19.77]
[1756690371284,134.4,201.82,201.78,0.98]
[1756690371285,134.4,201.82,201.78,20.75]
[1756690371484,0.02,201.81,201.64,7.28]
[1756690371690,134.38,201.82,201.69,0.96]
[1756690371691,5.65276298,201.74,201.69,0.96]
[1756690371884,5.65276298,201.74,201.7,20.73]
[1756690372076,134.6,201.73,201.7,20.73]
[1756690372278,5.65276298,201.74,201.7,20.73]
[1756690372482,332.86,201.76,201.56,7.28]
[1756690372678,134.58,201.75,201.58,7.28]
[1756690372885,332.86,201.76,201.72,20.73]
[1756690373089,134.54,201.75,201.72,20.73]
[1756690373284,134.54,201.75,201.72,0.96]
[1756690373488,134.54,201.74,201.72,20.73]
[1756690373679,332.86,201.76,201.73,8.24]
[1756690373883,332.86,201.76,201.75,0.96]
[1756690374082,467.32,201.76,201.75,20.73]
[1756690374590,467.34,201.76,201.75,28.01]
[1756690374783,467.34,201.76,201.75,20.73]
[1756690375991,467.34,201.76,201.75,28.01]
[1756690375992,134.5,201.76,201.75,28.01]
[1756690376581,332.98,201.84,201.75,28.01]
[1756690376782,332.98,201.84,201.75,7.28]
[1756690377086,467.44,201.84,201.83,28.01]
[1756690377485,332.98,201.84,201.83,28.01]
[1756690377685,332.98,201.84,201.83,27.55]
[1756690377686,323.99,201.84,201.83,27.55]
[1756690377986,134.42,201.85,201.83,20.27]
[1756690378186,134.42,201.86,201.84,27.05]
[1756690378488,134.42,201.86,201.85,7.28]
[1756690378680,134.42,201.86,201.85,27.05]
[1756690378681,134.32,201.86,201.85,27.05]
[1756690379281,134.32,201.86,201.85,19.77]
[1756690379584,134.32,201.86,201.85,27.05]
[1756690379894,134.24,201.89,201.86,7.28]
[1756690380091,134.24,201.89,201.75,7.28]
[1756690380288,134.24,201.89,201.88,19.77]
[1756690380488,346.02276298,201.96,201.88,19.77]
[1756690380691,13.00276298,201.92,201.79,7.28]
[1756690380887,7.35,201.91,201.87,19.77]
[1756690381092,127.06,201.9,201.87,19.77]
[1756690381390,5.65276298,201.92,201.89,19.77]
[1756690381578,134.18,201.91,201.89,19.77]
[1756690382088,5.65276298,201.92,201.89,19.77]
[1756690382284,134.14,201.91,201.84,7.28]
[1756690382888,134.14,201.91,201.9,19.77]
[1756690383395,134.14,201.91,201.84,7.28]
[1756690383586,141.49,201.91,201.88,19.77]
[1756690383783,5.65276298,201.95,201.84,7.28]
[1756690383984,134.0,201.94,201.85,4.33000323]
[1756690384183,7.35,201.97,201.67,395.02]
[1756690384184,7.35,202.03,201.95,19.77]
[1756690384389,7.35,202.03,201.83,5.65276298]
[1756690384390,340.35,202.08,201.87,5.65276298]
[1756690384685,134.32,202.07,202.03,19.77]
[1756690385081,333.0,202.08,201.87,5.65276298]
[1756690385279,333.0,202.08,201.83,12.4]
[1756690385280,7.35,202.15,202.05,7.28]
[1756690385485,134.26,202.14,202.1,19.77]
[1756690386083,5.65276298,202.18,202.1,19.77]
[1756690386284,134.38,202.17,202.12,19.77]
[1756690386589,7.35,202.16,202.11,19.77]
[1756690386991,134.38,202.17,202.11,19.77]
[1756690387289,134.38,202.17,202.05,7.28]
[1756690387484,134.38,202.17,202.1,19.77]
[1756690387681,134.38,202.17,202.05,7.28]
[1756690387882,5.65276298,202.14,201.96,7.28]
[1756690388192,5.65276298,202.14,201.97,4.33265208]
[1756690388193,7.33,202.13,201.97,4.33265208]
[1756690388380,7.33,202.13,201.96,7.28]
[1756690388381,117.98,202.12,201.98,4.33265208]
[1756690388586,117.98,202.12,202.04,19.77]
[1756690388785,117.98,202.12,201.96,7.28]
[1756690388786,5.65276298,202.1,201.96,7.28]
[1756690388984,5.65276298,202.1,202.03,19.77]
[1756690389286,7.33,202.09,202.02,19.77]
[1756690389486,7.33,202.09,201.96,7.28]
[1756690389793,7.33,202.09,202.02,19.77]
[1756690390290,7.33,202.09,201.96,7.28]
[1756690390487,7.33,202.09,202.02,19.77]
[1756690390695,7.33,202.09,201.99,19.77]
[1756690390898,7.33,202.09,201.96,7.28]
[1756690391100,42.2,202.08,202.0,19.77]